{"text_format":"1","workbook":"xlsx","n_sheets":18,"sheets":["Apresentação","Instruções","Menu Navegação","Dados gerais","Parâmetros econômicos-mercado","Parâmetros Recria","Parâmetros Engorda","Parâmetros Terminação","Parâmetros Monofásico","Custos para implantação","Inventário","Custos fixos","Custos variáveis","Receitas","Indicadores","Gráficos de custos","Retorno do investimento","Relatório da produção"],"not_rendered":{"charts":4,"images":0,"macros":1,"external_links":0,"defined_names":3,"comments":10,"pivot_tables":0},"unopened":[],"bounds":{"document_bytes":16777216,"sheet_cells":100000,"rows_first":2000,"rows_last":500,"rows_between":2000,"halvings":0,"cell_chars":16384,"cell_head_chars":4096},"cells_cut":0,"cells_raw":0,"read":"whole","date_system":"1900"}

{"sheet":"Apresentação","index":0,"n_rows":0,"n_cols":0,"rows_kept":0,"cut":false,"hidden":false,"merged":[]}

{"sheet":"Instruções","index":1,"n_rows":0,"n_cols":0,"rows_kept":0,"cut":false,"hidden":false,"merged":[]}

{"sheet":"Menu Navegação","index":2,"n_rows":0,"n_cols":0,"rows_kept":0,"cut":false,"hidden":false,"merged":[]}

{"sheet":"Dados gerais","index":3,"n_rows":9,"n_cols":2,"rows_kept":9,"cut":false,"hidden":false,"merged":[[1,1,1,2]]}
[]
[null,"Dados Gerais"]
[null,"Nome da empresa"]
[null,"Nome do proprietário"]
[null,"Endereço/ Cidade/ UF"]
[null,"Atividade desenvolvida"]
[null,"Registro Incra"]
[null,"Arrendamento "]
[null,"Tipo de cultivo"]

{"sheet":"Parâmetros econômicos-mercado","index":4,"n_rows":14,"n_cols":5,"rows_kept":14,"cut":false,"hidden":false,"merged":[[2,1,2,4],[4,1,4,4],[8,1,8,4],[5,1,5,2],[6,1,6,2],[3,1,3,2]]}
[]
[]
[null,"Parâmetros Econômicos"]
[null,"Discriminação",null,"Unidade","Quantidade ao ano"]
[null,"Taxa de juro estimada"]
[null,"Custo de oportunidade da terra",null,"%"]
[null,"Custo de oportunidade do capital físico",null,"%"]
[]
[null,"Condições de mercado"]
[null,"Produto/sub-produto","Unidade","Especificação","R$/Unidade"]
[null,"Tilápia","kg","venda de peixe vivo"]
[null,"Outras receitas 1","unidade"]
[null,"Outras receitas 2","unidade"]
[null,"Outras receitas 3","unidade"]

{"sheet":"Parâmetros Recria","index":5,"n_rows":23,"n_cols":19,"rows_kept":23,"cut":false,"hidden":false,"merged":[[1,1,1,12],[1,17,1,18],[2,1,2,12],[12,1,12,12]]}
[]
[null,"Parâmetros zootécnicos recria",null,null,null,null,null,null,null,null,null,null,null,null,null,null,null,"área total de viveiro"]
[null,"Entrada de dados",null,null,null,null,null,null,null,null,null,null,null,null,null,null,null,"m2","ha"]
[null,"Discriminação","Unidade","Viveiro 1","Viveiro 2","Viveiro 3","Viveiro 4","Viveiro 5","Viveiro 6","Viveiro 7","Viveiro 8","Viveiro 9","Viveiro 10",null,null,null,null,{"$f":"SUM(D5:M5)","v":0},{"$f":"R4/10000","v":0}]
[null,"Área do viveiro","m²"]
[null,"Data de estocagem dos alevinos ","DD/MM/AA"]
[null,"Número de alevinos estocados","número"]
[null,"Peso médio inicial dos alevinos","g"]
[null,"Data de despesca dos juvenis","DD/MM/AA"]
[null,"Número de juvenis despescados","número"]
[null,"Peso médio final dos peixes ","g"]
[null,"Quantidade de ração utilizada","kg"]
[null,"Parâmetros zootécnicos obtidos"]
[null,"Biomassa inicial ","kg",{"$f":"D7*(D8/1000)","v":0},0,0,0,0,0,0,0,0,0]
[null,"Biomassa final","kg",{"$f":"D10*(D11/1000)","v":0},0,0,0,0,0,0,0,0,0]
[null,"Taxa de sobrevivência","%",{"$f":"IFERROR((D10*100/D7)/100,0)","v":0},0,0,0,0,0,0,0,0,0]
[null,"Período de cultivo","dias",{"$f":"D9-D6","v":0},0,0,0,0,0,0,0,0,0]
[null,"Ganho de biomassa","kg",{"$f":"D15-D14","v":0},0,0,0,0,0,0,0,0,0]
[null,"Área do viveiro","ha",{"$f":"D5/10000","v":0},0,0,0,0,0,0,0,0,0]
[null,"Densidade","peixes/m²",{"$f":"IFERROR(D7/D5,0)","v":0},0,0,0,0,0,0,0,0,0]
[null,"Produtividade por m²","kg/m²/ciclo",{"$f":"IFERROR(D15/D5,0)","v":0},0,0,0,0,0,0,0,0,0]
[null,"Produtividade por ha","kg/ha/ciclo",{"$f":"IFERROR(D15/D19,0)","v":0},0,0,0,0,0,0,0,0,0]
[null,"Conversão alimentar ",null,{"$f":"IFERROR(D12/D18,0)","v":0},0,0,0,0,0,0,0,0,0]

{"sheet":"Parâmetros Engorda","index":6,"n_rows":23,"n_cols":19,"rows_kept":23,"cut":false,"hidden":false,"merged":[[1,1,1,12],[1,17,1,18],[2,1,2,12],[12,1,12,12]]}
[]
[null,"Parâmetros zootécnicos recria",null,null,null,null,null,null,null,null,null,null,null,null,null,null,null,"área total de viveiro"]
[null,"Entrada de dados",null,null,null,null,null,null,null,null,null,null,null,null,null,null,null,"m2","ha"]
[null,"Discriminação","Unidade","Viveiro 1","Viveiro 2","Viveiro 3","Viveiro 4","Viveiro 5","Viveiro 6","Viveiro 7","Viveiro 8","Viveiro 9","Viveiro 10",null,null,null,null,{"$f":"SUM(D5:M5)","v":0},{"$f":"R4/10000","v":0}]
[null,"Área do viveiro","m²"]
[null,"Data de estocagem dos alevinos ","(DD/MM/AA)"]
[null,"Número de alevinos estocados","número"]
[null,"Peso médio inicial dos alevinos","g"]
[null,"Data de despesca dos juvenis","(DD/MM/AA)"]
[null,"Número de juvenis despescados","número"]
[null,"Peso médio final dos peixes ","g"]
[null,"Quantidade de ração utilizada","kg"]
[null,"Parâmetros zootécnicos obtidos"]
[null,"Biomassa inicial ","kg",{"$f":"D7*(D8/1000)","v":0},0,0,0,0,0,0,0,0,0]
[null,"Biomassa final","kg",{"$f":"D10*(D11/1000)","v":0},0,0,0,0,0,0,0,0,0]
[null,"Taxa de sobrevivência","%",{"$f":"IFERROR((D10*100/D7)/100,0)","v":0},0,0,0,0,0,0,0,0,0]
[null,"Período de cultivo","dias",{"$f":"D9-D6","v":0},0,0,0,0,0,0,0,0,0]
[null,"Ganho de biomassa","kg",{"$f":"D15-D14","v":0},0,0,0,0,0,0,0,0,0]
[null,"Área do viveiro","ha",{"$f":"D5/10000","v":0},0,0,0,0,0,0,0,0,0]
[null,"Densidade","peixes/m²",{"$f":"IFERROR(D7/D5,0)","v":0},0,0,0,0,0,0,0,0,0]
[null,"Produtividade por m²","kg/m²/ciclo",{"$f":"IFERROR(D15/D5,0)","v":0},0,0,0,0,0,0,0,0,0]
[null,"Produtividade por ha","kg/ha/ciclo",{"$f":"IFERROR(D15/D19,0)","v":0},0,0,0,0,0,0,0,0,0]
[null,"Conversão alimentar ",null,{"$f":"IFERROR(D12/D18,0)","v":0},0,0,0,0,0,0,0,0,0]

{"sheet":"Parâmetros Terminação","index":7,"n_rows":23,"n_cols":36,"rows_kept":23,"cut":false,"hidden":false,"merged":[[1,1,1,12],[1,17,1,18],[2,1,2,12],[12,1,12,12]]}
[]
[null,"Parâmetros zootécnicos recria",null,null,null,null,null,null,null,null,null,null,null,null,null,null,null,"área total de viveiro",null,null,null,null,null,null,null,null,1,2,3,4,5,6,7,8,9,10]
[null,"Entrada de dados",null,null,null,null,null,null,null,null,null,null,null,null,null,null,null,"m2","ha",null,null,null,null,null,null,null,{"$f":"SUM('Parâmetros Recria'!D5,'Parâmetros Engorda'!D5,'Parâmetros Terminação'!D5)","v":0},{"$f":"SUM('Parâmetros Recria'!E5,'Parâmetros Engorda'!E5,'Parâmetros Terminação'!E5)","v":0},{"$f":"SUM('Parâmetros Recria'!F5,'Parâmetros Engorda'!F5,'Parâmetros Terminação'!F5)","v":0},{"$f":"SUM('Parâmetros Recria'!G5,'Parâmetros Engorda'!G5,'Parâmetros Terminação'!G5)","v":0},{"$f":"SUM('Parâmetros Recria'!H5,'Parâmetros Engorda'!H5,'Parâmetros Terminação'!H5)","v":0},{"$f":"SUM('Parâmetros Recria'!I5,'Parâmetros Engorda'!I5,'Parâmetros Terminação'!I5)","v":0},{"$f":"SUM('Parâmetros Recria'!J5,'Parâmetros Engorda'!J5,'Parâmetros Terminação'!J5)","v":0},{"$f":"SUM('Parâmetros Recria'!K5,'Parâmetros Engorda'!K5,'Parâmetros Terminação'!K5)","v":0},{"$f":"SUM('Parâmetros Recria'!L5,'Parâmetros Engorda'!L5,'Parâmetros Terminação'!L5)","v":0},{"$f":"SUM('Parâmetros Recria'!M5,'Parâmetros Engorda'!M5,'Parâmetros Terminação'!M5)","v":0}]
[null,"Discriminação","Unidade","Viveiro 1","Viveiro 2","Viveiro 3","Viveiro 4","Viveiro 5","Viveiro 6","Viveiro 7","Viveiro 8","Viveiro 9","Viveiro 10",null,null,null,null,{"$f":"SUM(D5:M5)","v":0},{"$f":"R4/10000","v":0},null,null,null,null,null,null,null,{"$f":"AA3/10000","v":0},{"$f":"AB3/10000","v":0},0,0,0,0,0,0,0,0]
[null,"Área do viveiro","m²"]
[null,"Data de estocagem dos alevinos ","(DD/MM/AA)"]
[null,"Número de alevinos estocados","número"]
[null,"Peso médio inicial dos alevinos","g"]
[null,"Data de despesca dos juvenis","(DD/MM/AA)"]
[null,"Número de juvenis despescados","número"]
[null,"Peso médio final dos peixes ","g"]
[null,"Quantidade de ração utilizada","kg"]
[null,"Parâmetros zootécnicos obtidos"]
[null,"Biomassa inicial ","kg",{"$f":"D7*(D8/1000)","v":0},0,0,0,0,0,0,0,0,0]
[null,"Biomassa final","kg",{"$f":"D10*(D11/1000)","v":0},0,0,0,0,0,0,0,0,0]
[null,"Taxa de sobrevivência","%",{"$f":"IFERROR((D10*100/D7)/100,0)","v":0},0,0,0,0,0,0,0,0,0]
[null,"Período de cultivo","dias",{"$f":"D9-D6","v":0},0,0,0,0,0,0,0,0,0]
[null,"Ganho de biomassa","kg",{"$f":"D15-D14","v":0},0,0,0,0,0,0,0,0,0]
[null,"Área do viveiro","ha",{"$f":"D5/10000","v":0},0,0,0,0,0,0,0,0,0]
[null,"Densidade","peixes/m²",{"$f":"IFERROR(D7/D5,0)","v":0},0,0,0,0,0,0,0,0,0]
[null,"Produtividade por m²","kg/m²/ciclo",{"$f":"IFERROR(D15/D5,0)","v":0},0,0,0,0,0,0,0,0,0]
[null,"Produtividade por ha","kg/ha/ciclo",{"$f":"IFERROR(D15/D19,0)","v":0},0,0,0,0,0,0,0,0,0]
[null,"Conversão alimentar ",null,{"$f":"IFERROR(D12/D18,0)","v":0},0,0,0,0,0,0,0,0,0]

{"sheet":"Parâmetros Monofásico","index":8,"n_rows":23,"n_cols":21,"rows_kept":23,"cut":false,"hidden":false,"merged":[[1,1,1,12],[1,18,1,19],[2,1,2,12],[12,1,12,12]]}
[null,null,null,null,null,null,null,null,null,null,null,null,null,null,null,null,null,null,null,null,"Média"]
[null,"Parâmetros zootécnicos monofásico",null,null,null,null,null,null,null,null,null,null,null,null,null,null,null,null,"área total de viveiro"]
[null,"Entrada de dados",null,null,null,null,null,null,null,null,null,null,null,null,null,null,null,null,"m2","ha"]
[null,"Discriminação","Unidade","Viveiro 1","Viveiro 2","Viveiro 3","Viveiro 4","Viveiro 5","Viveiro 6","Viveiro 7","Viveiro 8","Viveiro 9","Viveiro 10",null,null,null,null,null,{"$f":"SUM(D5:M5)","v":0},{"$f":"S4/10000","v":0}]
[null,"Área do viveiro","m²"]
[null,"Data de estocagem dos alevinos ","(DD/MM/AA)"]
[null,"Número de alevinos estocados","número"]
[null,"Peso médio inicial dos alevinos","g"]
[null,"Data de despesca dos peixes ","(DD/MM/AA)"]
[null,"Número de peixes despescados","número"]
[null,"Peso médio final dos peixes ","g"]
[null,"Quantidade de ração utilizada","kg"]
[null,"Parâmetros zootécnicos obtidos",null,null,null,null,null,null,null,null,null,null,null,null,null,null,null,null,null,null,{"$f":"AVERAGE(D17:M17)/30","v":0}]
[null,"Biomassa inicial ","kg",{"$f":"D7*(D8/1000)","v":0},0,0,0,0,0,0,0,0,0]
[null,"Biomassa final","kg",{"$f":"D10*(D11/1000)","v":0},0,0,0,0,0,0,0,0,0]
[null,"Taxa de sobrevivência","%",{"$f":"IFERROR((D10*100/D7)/100,0)","v":0},0,0,0,0,0,0,0,0,0]
[null,"Período de cultivo","dias",{"$f":"D9-D6","v":0},0,0,0,0,0,0,0,0,0]
[null,"Ganho de biomassa","kg",{"$f":"D15-D14","v":0},0,0,0,0,0,0,0,0,0]
[null,"Área do viveiro","ha",{"$f":"D5/10000","v":0},{"$f":"E5/10000","v":0},0,0,0,0,0,0,0,0]
[null,"Densidade","peixes/m²",{"$f":"IFERROR(D7/D5,0)","v":0},0,0,0,0,0,0,0,0,0]
[null,"Produtividade por m²","kg/m²/ciclo",{"$f":"IFERROR(D15/D5,0)","v":0},0,0,0,0,0,0,0,0,0]
[null,"Produtividade por ha","kg/ha/ciclo",{"$f":"IFERROR(D15/D19,0)","v":0},0,0,0,0,0,0,0,0,0]
[null,"Conversão alimentar ",null,{"$f":"IFERROR(D12/D18,0)","v":0},0,0,0,0,0,0,0,0,0]

{"sheet":"Custos para implantação","index":9,"n_rows":53,"n_cols":23,"rows_kept":53,"cut":false,"hidden":false,"merged":[[52,1,52,3],[27,1,27,5],[8,1,8,5],[52,4,52,5],[1,1,1,5],[38,1,38,5],[42,1,42,5],[49,1,49,5],[3,1,3,5]]}
[]
[null,"Custos para Implantação"]
[null,"Discriminação","Unidade","Quantidade","Preço unitário","Valor total"]
[null,"Terra"]
[null,"Compra da área","ha",null,null,{"$f":"E5*D5","v":0}]
[null,"Outros 1","ha",null,null,{"$f":"E6*D6","v":0}]
[null,"Outros 2","ha",null,null,0]
[null,"Outros 3","ha",null,null,0]
[null,"Construção do viveiro e benfeitorias"]
[null,"Areia","m³",null,null,{"$f":"E10*D10","v":0}]
[null,"Cal ","sacos",null,null,{"$f":"E11*D11","v":0}]
[null,"Cano de PVC","metro",null,null,0]
[null,"Cimento","sacos",null,null,0]
[null,"Joelho PVC","unidade",null,null,0]
[null,"Madeira","m³",null,null,0]
[null,"Pedra Brita","m³",null,null,0]
[null,"Retroescavadeira","hora/máquina",null,null,0]
[null,"Tábuas","m",null,null,0]
[null,"Telhas","milheiro",null,null,0]
[null,"Tijolos","milheiro",null,null,0]
[null,"Trator de esteira","hora/máquina",null,null,0]
[null,"Tubos de concreto","metro",null,null,0]
[null,"Outros materias 1","unidade",null,null,0]
[null,"Outros materias 2","unidade",null,null,0]
[null,"Outros materias 3","unidade",null,null,0]
[null,"Outros materias 4","unidade",null,null,0]
[null,"Outros materias 5","unidade",null,null,0]
[null,"Materiais e Equipamentos"]
[null,"Aerador","unidade",null,null,{"$f":"E29*D29","v":0}]
[null,"Balança de gancho","unidade",null,null,{"$f":"E30*D30","v":0}]
[null,"Kit para análise","unidade",null,null,0]
[null,"Rede de arrasto","unidade",null,null,0]
[null,"Tarrafa","unidade",null,null,0]
[null,"Outros 1","unidade",null,null,{"$f":"E34*D34","v":0}]
[null,"Outros 2","unidade",null,null,{"$f":"E35*D35","v":0}]
[null,"Outros 3","unidade",null,null,0]
[null,"Outros 4","unidade",null,null,0]
[null,"Outros 5","unidade",null,null,0,null,null,null,null,null,null,null,null,null,null,null,null,null,null,null,null,{"$f":"E53","v":0}]
[null,"Mão de obra"]
[null,"Mestre de obras","dia/homem",null,null,{"$f":"E40*D40","v":0}]
[null,"Serviços gerais","dia/homem",null,null,{"$f":"E41*D41","v":0}]
[null,"Outros","salário",null,null,{"$f":"E42*D42","v":0}]
[null,"Taxas e Impostos"]
[null,"CREA (A.R.T)","unidade",null,null,{"$f":"E44*D44","v":0}]
[null,"Licença ambiental - IAP","unidade",null,null,{"$f":"E45*D45","v":0}]
[null,"Licença de outorga","unidade",null,null,0]
[null,"Outros 1","unidade",null,null,0]
[null,"Outros 2","unidade",null,null,0]
[null,"Outros 3","unidade",null,null,0]
[null,"Assessoria técnica"]
[null,"Elaboração do projeto","horas",null,null,{"$f":"IF(C51=\"%\",(D51/100*E51),E51*D51)","v":0}]
[]
[null,"Custo total de implantação do projeto",null,null,{"$f":"SUM(F5:F8,F10:F27,F29:F38,F40:F42,F44:F49,F51)","v":0}]

{"sheet":"Inventário","index":10,"n_rows":69,"n_cols":9,"rows_kept":69,"cut":false,"hidden":false,"merged":[[2,1,2,5],[68,1,68,4],[3,1,3,5],[9,1,9,5],[23,1,23,5],[48,1,48,5]]}
[]
[]
[null,"Inventário"]
[null,"Terra"]
[null,"Discriminação","Unidade","Quantidade","Preço unitário","Valor total"]
[null,"Valor do arrendamento/mês","ha",{"$f":"IF('Dados gerais'!C8=\"Sim\",IF('Parâmetros Recria'!D19>0,SUM('Parâmetros Recria'!D19:M19),SUM('Parâmetros Monofásico'!D19:M19)),0)","v":0},null,{"$f":"IF('Dados gerais'!C8=\"não\",0,Inventário!D6*Inventário!E6)","v":0}]
[null,"Área de cultivo de peixes","ha",{"$f":"IF('Dados gerais'!C8=\"Não\",IF('Parâmetros Recria'!D19>0,SUM('Parâmetros Recria'!D19:M19,'Parâmetros Engorda'!D19:M19,'Parâmetros Terminação'!D19:M19),SUM('Parâmetros Monofásico'!D19:M19)),0)","v":0},null,{"$f":"E7*D7","v":0}]
[null,"Área de preservação e reserva","ha",null,null,{"$f":"E8*D8","v":0}]
[null,"Área Total","ha",{"$f":"SUM(D6:D8)","v":0},null,{"$f":"SUM(F6:F8)","v":0}]
[null,"Máquinas e Veículos"]
[null,"Discriminação","Unidade","Quantidade","Preço unitário (R$)","Vida útil (anos)"]
[null,"Balsa","unidade"]
[null,"Barco sem motor","unidade"]
[null,"Bote","unidade"]
[null,"Carro 1","unidade"]
[null,"Carro 2","unidade"]
[null,"Trator 1","unidade"]
[null,"Trator 2","unidade"]
[null,"Outros 1","unidade"]
[null,"Outros 2","unidade"]
[null,"Outros 3","unidade"]
[null,"Outros 4","unidade"]
[null,"Outros 5","unidade"]
[null,"Equipamentos"]
[null,"Aerador","unidade"]
[null,"Balança","unidade"]
[null,"Balde para arraçoamento","unidade"]
[null,"Caixa d' água","unidade"]
[null,"Caixa de Isopor","unidade"]
[null,"Caixa para transporte","unidade"]
[null,"Carreta","unidade"]
[null,"Cordas","metro"]
[null,"Freezer","unidade"]
[null,"Geladeira","unidade"]
[null,"Gerador","unidade"]
[null,"Kit para análise de água","unidade",null,null,null,null,null,""]
[null,"Mesa","unidade"]
[null,"Misturador de ração","unidade"]
[null,"Motobomba","unidade"]
[null,"Oxímetro","unidade"]
[null,"Puça","unidade"]
[null,"Rede ","unidade"]
[null,"Tarrafa","unidade"]
[null,"Outros equipamentos 1","unidade"]
[null,"Outros equipamentos 2","unidade"]
[null,"Outros equipamentos 3","unidade"]
[null,"Outros equipamentos 4","unidade"]
[null,"Outros equipamentos 5","unidade"]
[null,"Benfeitorias"]
[null,"Casa funcionário 1","m²"]
[null,"Casa funcionário 2","m²"]
[null,"Casa sede","m²"]
[null,"Depósito de ração","m²"]
[null,"Escritório","m²"]
[null,"Galpão 1","m²"]
[null,"Galpão 2","m²"]
[null,"Laboratório ","m²"]
[null,"Viveiro 1","m²",{"$f":"IF('Parâmetros Terminação'!AA3>'Parâmetros Monofásico'!D5,'Parâmetros Terminação'!AA3,'Parâmetros Monofásico'!D5)","v":0}]
[null,"Viveiro 2","m²",{"$f":"IF('Parâmetros Terminação'!AB3>'Parâmetros Monofásico'!E5,'Parâmetros Terminação'!AB3,'Parâmetros Monofásico'!E5)","v":0}]
[null,"Viveiro 3","m²",{"$f":"IF('Parâmetros Terminação'!AC3>'Parâmetros Monofásico'!F5,'Parâmetros Terminação'!AC3,'Parâmetros Monofásico'!F5)","v":0}]
[null,"Viveiro 4","m²",{"$f":"IF('Parâmetros Terminação'!AD3>'Parâmetros Monofásico'!G5,'Parâmetros Terminação'!AD3,'Parâmetros Monofásico'!G5)","v":0}]
[null,"Viveiro 5","m²",{"$f":"IF('Parâmetros Terminação'!AE3>'Parâmetros Monofásico'!H5,'Parâmetros Terminação'!AE3,'Parâmetros Monofásico'!H5)","v":0}]
[null,"Viveiro 6","m²",{"$f":"IF('Parâmetros Terminação'!AF3>'Parâmetros Monofásico'!I5,'Parâmetros Terminação'!AF3,'Parâmetros Monofásico'!I5)","v":0}]
[null,"Viveiro 7","m²",{"$f":"IF('Parâmetros Terminação'!AG3>'Parâmetros Monofásico'!J5,'Parâmetros Terminação'!AG3,'Parâmetros Monofásico'!J5)","v":0}]
[null,"Viveiro 8","m²",{"$f":"IF('Parâmetros Terminação'!AH3>'Parâmetros Monofásico'!K5,'Parâmetros Terminação'!AH3,'Parâmetros Monofásico'!K5)","v":0}]
[null,"Viveiro 9","m²",{"$f":"IF('Parâmetros Terminação'!AI3>'Parâmetros Monofásico'!L5,'Parâmetros Terminação'!AI3,'Parâmetros Monofásico'!L5)","v":0}]
[null,"Viveiro 10","m²",{"$f":"IF('Parâmetros Terminação'!AJ3>'Parâmetros Monofásico'!M5,'Parâmetros Terminação'!AJ3,'Parâmetros Monofásico'!M5)","v":0}]
[]
[null,"Valor total do patrimônio da empresa",null,null,null,{"$f":"'Custos fixos'!T64+'Custos fixos'!T65","v":0}]

{"sheet":"Custos fixos","index":11,"n_rows":138,"n_cols":31,"rows_kept":138,"cut":false,"hidden":false,"merged":[[27,1,27,2],[26,3,26,4],[27,3,27,4],[21,1,21,2],[22,1,22,2],[23,1,23,2],[24,1,24,2],[24,3,24,4],[8,1,8,2],[117,23,117,24],[117,26,117,29],[88,26,88,29],[71,26,71,29],[30,2,30,3],[88,23,88,24],[71,23,71,24],[28,1,28,2],[28,3,28,4],[21,3,21,4],[22,3,22,4],[23,3,23,4],[25,3,25,4],[25,1,25,2],[26,1,26,2],[9,3,9,4],[11,3,11,4],[12,3,12,4],[13,1,13,2],[11,1,11,2],[12,1,12,2],[9,1,9,2],[13,3,13,4],[20,3,20,4],[18,3,18,4],[19,3,19,4],[17,1,17,4],[20,1,20,2],[1,1,1,4],[10,3,10,4],[2,3,2,4],[6,3,6,4],[3,3,3,4],[4,3,4,4],[5,3,5,4],[2,1,2,2],[5,1,5,2],[4,1,4,2],[3,1,3,2],[6,1,6,2],[10,1,10,2],[7,1,7,2],[7,3,7,4],[8,3,8,4]]}
[null,null,null,null,null,null,null,null,null,null,null,"média (+ 1 fase)","médio monof"]
[null,"Custos Fixos",null,null,null,null,null,null,null,null,"RECRIA",{"$f":"IFERROR(AVERAGEIF('Parâmetros Recria'!D17:M17,\">0\"),0)","v":0},{"$f":"IFERROR(AVERAGEIF('Parâmetros Monofásico'!D17:M17,\">0\"),0)","v":0}]
[null,"Depreciação ",null,{"$f":"IFERROR(SUM(D4:D6)/IF($L$6>$M$3,$L$6,$M$3),0)","v":0},null,null,null,null,null,null,"ENGORDA",{"$f":"IFERROR(AVERAGEIF('Parâmetros Engorda'!D17:M17,\">0\"),0)","v":0},{"$f":"ROUNDUP((M2/30),1)","v":0}]
[null,"Benfeitorias",null,{"$f":"$AE$134","v":0},null,null,null,null,null,null,"TERMINAÇÃO",{"$f":"IFERROR(AVERAGEIF('Parâmetros Terminação'!D17:M17,\">0\"),0)","v":0}]
[null,"Máquinas e veículos",null,{"$f":"$AE$86","v":0},null,null,null,null,null,null,"TOTAL",{"$f":"SUM(L2:L4)","v":0}]
[null,"Equipamentos",null,{"$f":"$AE$115","v":0},null,null,null,null,null,null,null,{"$f":"ROUNDUP(L5/30,1)","v":0}]
[null,"Conservação e reparos",null,{"$f":"IFERROR(SUM(D8:D10)/IF($L$6>$M$3,$L$6,$M$3),0)","v":0}]
[null,"Benfeitorias",null,{"$f":"$Z$134","v":0},null,null,null,null,null,null,"% sobreviv"]
[null,"Máquinas e veículos",null,{"$f":"$Z$86","v":0},null,null,null,null,null,null,"recria",{"$f":"IFERROR(AVERAGEIF('Parâmetros Recria'!D16:M16,\">0\"),0)","v":0}]
[null,"Equipamentos",null,{"$f":"$Z$115","v":0},null,null,null,null,null,null,"engorda",{"$f":"IFERROR(AVERAGEIF('Parâmetros Engorda'!D16:M16,\">0\"),0)","v":0}]
[null,"Custo de oportunidade",null,{"$f":"IFERROR(SUM(D12:D13)/IF($L$6>$M$3,$L$6,$M$3),0)","v":0},null,null,null,null,null,null,"termi",{"$f":"IFERROR(AVERAGEIF('Parâmetros Terminação'!D16:M16,\">0\"),0)","v":0}]
[null,"Terra",null,{"$f":"IF('Dados gerais'!$C$8=\"sim\",0,'Custos fixos'!$V$64)","v":0},null,null,null,null,null,null,"total",{"$f":"IFERROR(AVERAGEIF(L9:L11,\">0\"),0)","v":0}]
[null,"Capital Físico",null,{"$f":"$V$65","v":0}]
[null,"Mão de obra fixa",null,{"$f":"SUM(E16:E17)","v":0},null,null,null,null,null,null,"produtividade hec"]
[null,null,"nº contratados","R$/mês","R$/ciclo",null,null,null,null,null,"recria",{"$f":"IFERROR(AVERAGEIF('Parâmetros Recria'!D22:M22,\">0\"),0)","v":0}]
[null,"Salário gerência + encargos sociais",null,null,{"$f":"(IF($L$6>$M$3,$L$6,$M$3)*(C16*D16))","v":0},null,null,null,null,null,"engorda",{"$f":"IFERROR(AVERAGEIF('Parâmetros Engorda'!D21:M21,\">0\"),0)","v":0}]
[null,"Salário contratado + encargos sociais",null,null,{"$f":"(IF($L$6>$M$3,$L$6,$M$3)*(C17*D17))","v":0},null,null,null,null,null,"termi",{"$f":"IFERROR(AVERAGEIF('Parâmetros Terminação'!D21:M21,\">0\"),0)","v":0}]
[null,"Remuneração do empresário",null,null,null,null,null,null,null,null,"total",{"$f":"IFERROR(AVERAGEIF(L15:L17,\">0\"),0)","v":0}]
[null,null,"R$/mês","R$/ciclo"]
[null,"Remuneração ",null,{"$f":"IF($L$6>$M$3,$L$6,$M$3)*C20","v":0},null,null,null,null,null,null,"densidade"]
[null,"Taxas e Impostos",null,{"$f":"SUM(D22:D24)","v":0},null,null,null,null,null,null,"recria",{"$f":"IFERROR(AVERAGEIF('Parâmetros Recria'!D20:M20,\">0\"),0)","v":0}]
[null,"ITR",null,0,null,null,null,null,null,null,"engorda",{"$f":"IFERROR(AVERAGEIF('Parâmetros Engorda'!D19:M19,\">0\"),0)","v":0}]
[null,"Taxa 1",null,0,null,null,null,null,null,null,"termi",{"$f":"IFERROR(AVERAGEIF('Parâmetros Terminação'!D19:M19,\">0\"),0)","v":0}]
[null,"Taxa 2",null,0,null,null,null,null,null,null,"total",{"$f":"IFERROR(AVERAGEIF(L21:L23,\">0\"),0)","v":0}]
[null,"Outros custos fixos",null,{"$f":"SUM(D26:D28)","v":0}]
[null,"Valor do arrendamento",null,{"$f":"IFERROR(IF('Dados gerais'!$C$8=\"sim\",Inventário!$F$6,\"0\")*IF(L6>M3,L6,M3),0)","v":0}]
[null,"Outros Custos 1",null,0]
[null,"Outros Custos 2",null,0]
[null,"Outros Custos 3",null,0]
[]
[null,"Valor total dos custos fixos",{"$f":"SUM(D3,D7,D11,D14,D20,D21,D25)","v":0}]
[]
[]
[]
[]
[]
[]
[]
[]
[]
[]
[]
[]
[]
[]
[]
[]
[]
[]
[]
[]
[]
[]
[]
[]
[]
[]
[]
[]
[null,null,null,null,null,null,null,null,null,null,null,null,null,null,null,null,null,null,"Taxa e Impostos"]
[null,null,null,null,null,null,null,null,null,null,null,null,null,null,null,null,null,null,"ITR"]
[]
[null,null,null,null,null,null,null,null,null,null,null,null,null,null,null,null,null,null,"Custo de Oportunidade","Valor Total","Taxa Utilizada/ano","Custo de Oportunidade/ano"]
[null,null,null,null,null,null,null,null,null,null,null,null,null,null,null,null,null,null,"Terra",{"$f":"IF(Inventário!F6>0,0,Inventário!F9)","v":0},{"$f":"'Parâmetros econômicos-mercado'!E6","v":0},{"$f":"U64*T64","v":0}]
[null,null,null,null,null,null,null,null,null,null,null,null,null,null,null,null,null,null,"Capital Físico",{"$f":"SUM(W86,W115,W138)","v":0},{"$f":"'Parâmetros econômicos-mercado'!E7","v":0},{"$f":"U65*T65","v":0}]
[]
[]
[]
[]
[]
[]
[null,null,null,null,null,null,null,null,null,null,null,null,null,null,null,null,null,null,null,null,null,null,null,"Conservação e Reparo (R$/ano)",null,null,"Depreciação (R$/ano)"]
[null,null,null,null,null,null,null,null,null,null,null,null,null,null,null,null,null,null,"Máquinas e Veículos","Unidade de medida","Valor (R$)/unidade","Quantidade / Unid","Valor Novo","Conservação e Reparos (%)","Valor Total (R$)","Valor Total (R$)","Valor Residual    (% do novo)","Valor Residual    (R$)","Vida Útil (anos)","Depreciação (R$/ano)"]
[null,null,null,null,null,null,null,null,null,null,null,null,null,null,null,null,null,null,"Balsa","unidade",{"$f":"Inventário!E12","v":0},{"$f":"Inventário!D12","v":0},{"$f":"V74*U74","v":0},0.1,{"$f":"W74*X74","v":0},{"$f":"IFERROR(Y74,0)","v":0},0.1,{"$f":"AA74*W74","v":0},{"$f":"Inventário!F12","v":0},{"$f":"(W74-AB74)/AC74","v":{"$error":"#DIV/0!"}},{"$f":"IFERROR(AD74,0)","v":0}]
[null,null,null,null,null,null,null,null,null,null,null,null,null,null,null,null,null,null,"Barco sem motor","unidade",{"$f":"Inventário!E13","v":0},{"$f":"Inventário!D13","v":0},{"$f":"V75*U75","v":0},0.1,{"$f":"W75*X75","v":0},{"$f":"IFERROR(Y75,0)","v":0},0.1,{"$f":"AA75*W75","v":0},{"$f":"Inventário!F13","v":0},{"$f":"(W75-AB75)/AC75","v":{"$error":"#DIV/0!"}},{"$f":"IFERROR(AD75,0)","v":0}]
[null,null,null,null,null,null,null,null,null,null,null,null,null,null,null,null,null,null,"Bote","unidade",{"$f":"Inventário!E14","v":0},{"$f":"Inventário!D14","v":0},0,0.1,0,0,0.1,0,{"$f":"Inventário!F14","v":0},{"$f":"(W76-AB76)/AC76","v":{"$error":"#DIV/0!"}},0]
[null,null,null,null,null,null,null,null,null,null,null,null,null,null,null,null,null,null,"Carro 1","unidade",{"$f":"Inventário!E15","v":0},{"$f":"Inventário!D15","v":0},0,0.1,0,0,0.1,0,{"$f":"Inventário!#REF!","v":{"$error":"#REF!"}},{"$error":"#REF!"},0]
[null,null,null,null,null,null,null,null,null,null,null,null,null,null,null,null,null,null,"Carro 2","unidade",{"$f":"Inventário!E16","v":0},{"$f":"Inventário!D16","v":0},0,0.1,0,0,0.1,0,{"$f":"Inventário!#REF!","v":{"$error":"#REF!"}},{"$error":"#REF!"},0]
[null,null,null,null,null,null,null,null,null,null,null,null,null,null,null,null,null,null,"Trator 1","unidade",{"$f":"Inventário!E17","v":0},{"$f":"Inventário!D17","v":0},0,0.1,0,0,0.1,0,{"$f":"Inventário!#REF!","v":{"$error":"#REF!"}},{"$error":"#REF!"},0]
[null,null,null,null,null,null,null,null,null,null,null,null,null,null,null,null,null,null,"Trator 2","unidade",{"$f":"Inventário!E18","v":0},{"$f":"Inventário!D18","v":0},0,0.1,0,0,0.1,0,{"$f":"Inventário!F15","v":0},{"$error":"#DIV/0!"},0]
[null,null,null,null,null,null,null,null,null,null,null,null,null,null,null,null,null,null,"Outros 1","unidade",{"$f":"Inventário!E19","v":0},{"$f":"Inventário!D19","v":0},0,0.1,0,0,0.1,0,{"$f":"Inventário!F16","v":0},{"$error":"#DIV/0!"},0]
[null,null,null,null,null,null,null,null,null,null,null,null,null,null,null,null,null,null,"Outros 2","unidade",{"$f":"Inventário!E20","v":0},{"$f":"Inventário!D20","v":0},0,0.1,0,0,0.1,0,{"$f":"Inventário!#REF!","v":{"$error":"#REF!"}},{"$error":"#REF!"},0]
[null,null,null,null,null,null,null,null,null,null,null,null,null,null,null,null,null,null,"Outros 3","unidade",{"$f":"Inventário!E21","v":0},{"$f":"Inventário!D21","v":0},0,0.1,0,0,0.1,0,{"$f":"Inventário!F17","v":0},{"$error":"#DIV/0!"},0]
[null,null,null,null,null,null,null,null,null,null,null,null,null,null,null,null,null,null,"Outros 4","unidade",{"$f":"Inventário!E22","v":0},{"$f":"Inventário!D22","v":0},0,0.1,0,0,0.1,0,{"$f":"Inventário!F18","v":0},{"$error":"#DIV/0!"},0]
[null,null,null,null,null,null,null,null,null,null,null,null,null,null,null,null,null,null,"Outros 5","unidade",{"$f":"Inventário!E23","v":0},{"$f":"Inventário!D23","v":0},0,0.1,0,0,0.1,0,{"$f":"Inventário!F19","v":0},{"$error":"#DIV/0!"},0]
[null,null,null,null,null,null,null,null,null,null,null,null,null,null,null,null,null,null,null,null,null,null,{"$f":"SUM(W74:W85)","v":0},null,{"$f":"SUM(Y74:Y85)","v":0},{"$f":"SUM(Z74:Z85)","v":0},null,null,null,{"$f":"SUM(AD74:AD85)","v":{"$error":"#DIV/0!"}},{"$f":"SUM(AE74:AE85)","v":0}]
[]
[]
[null,null,null,null,null,null,null,null,null,null,null,null,null,null,null,null,null,null,null,null,null,null,null,"Conservação e Reparo (R$/ano)",null,null,"Depreciação (R$/ano)"]
[null,null,null,null,null,null,null,null,null,null,null,null,null,null,null,null,null,null,"Equipamentos","Unidade de medida","Valor (R$)/und","Quantidade","Valor Total","Conservação e Reparos (%)","Valor Total (R$)","Valor Total (R$)","Valor Residual    (% do novo)","Valor Residual    (R$)","Vida Útil (anos)","Depreciação (R$/ano)"]
[null,null,null,null,null,null,null,null,null,null,null,null,null,null,null,null,null,null,"Aerador","unidade",{"$f":"Inventário!E25","v":0},{"$f":"Inventário!D25","v":0},{"$f":"V91*U91","v":0},0.1,{"$f":"X91*W91","v":0},{"$f":"IFERROR(Y91,0)","v":0},0.1,{"$f":"AA91*W91","v":0},{"$f":"Inventário!F25","v":0},{"$f":"(W91-AB91)/AC91","v":{"$error":"#DIV/0!"}},{"$f":"IFERROR(AD91,0)","v":0}]
[null,null,null,null,null,null,null,null,null,null,null,null,null,null,null,null,null,null,"Balança","unidade",{"$f":"Inventário!E26","v":0},{"$f":"Inventário!D26","v":0},0,0.1,{"$f":"X92*W92","v":0},{"$f":"IFERROR(Y92,0)","v":0},0.1,{"$f":"AA92*W92","v":0},{"$f":"Inventário!F26","v":0},{"$error":"#DIV/0!"},{"$f":"IFERROR(AD92,0)","v":0}]
[null,null,null,null,null,null,null,null,null,null,null,null,null,null,null,null,null,null,"Balde para arraçoamento","unidade",{"$f":"Inventário!E27","v":0},{"$f":"Inventário!D27","v":0},0,0.1,0,0,0.1,0,{"$f":"Inventário!F27","v":0},{"$error":"#DIV/0!"},0]
[null,null,null,null,null,null,null,null,null,null,null,null,null,null,null,null,null,null,"Caixa d' água","unidade",{"$f":"Inventário!E28","v":0},{"$f":"Inventário!D28","v":0},0,0.1,0,0,0.1,0,{"$f":"Inventário!F28","v":0},{"$error":"#DIV/0!"},0]
[null,null,null,null,null,null,null,null,null,null,null,null,null,null,null,null,null,null,"Caixa de Isopor","unidade",{"$f":"Inventário!E29","v":0},{"$f":"Inventário!D29","v":0},0,0.1,0,0,0.1,0,{"$f":"Inventário!F29","v":0},{"$error":"#DIV/0!"},0]
[null,null,null,null,null,null,null,null,null,null,null,null,null,null,null,null,null,null,"Caixa para transporte","unidade",{"$f":"Inventário!E30","v":0},{"$f":"Inventário!D30","v":0},0,0.1,0,0,0.1,0,{"$f":"Inventário!F30","v":0},{"$error":"#DIV/0!"},0]
[null,null,null,null,null,null,null,null,null,null,null,null,null,null,null,null,null,null,"Carreta","unidade",{"$f":"Inventário!E31","v":0},{"$f":"Inventário!D31","v":0},0,0.1,0,0,0.1,0,{"$f":"Inventário!F31","v":0},{"$error":"#DIV/0!"},0]
[null,null,null,null,null,null,null,null,null,null,null,null,null,null,null,null,null,null,"Cordas","unidade",{"$f":"Inventário!E32","v":0},{"$f":"Inventário!D32","v":0},0,0.1,0,0,0.1,0,{"$f":"Inventário!F32","v":0},{"$error":"#DIV/0!"},0]
[null,null,null,null,null,null,null,null,null,null,null,null,null,null,null,null,null,null,"Freezer","unidade",{"$f":"Inventário!E33","v":0},{"$f":"Inventário!D33","v":0},0,0.1,0,0,0.1,0,{"$f":"Inventário!F33","v":0},{"$error":"#DIV/0!"},0]
[null,null,null,null,null,null,null,null,null,null,null,null,null,null,null,null,null,null,"Geladeira","unidade",{"$f":"Inventário!E34","v":0},{"$f":"Inventário!D34","v":0},0,0.1,0,0,0.1,0,{"$f":"Inventário!F34","v":0},{"$error":"#DIV/0!"},0]
[null,null,null,null,null,null,null,null,null,null,null,null,null,null,null,null,null,null,"Gerador","unidade",{"$f":"Inventário!E35","v":0},{"$f":"Inventário!D35","v":0},0,0.1,0,0,0.1,0,{"$f":"Inventário!F35","v":0},{"$error":"#DIV/0!"},0]
[null,null,null,null,null,null,null,null,null,null,null,null,null,null,null,null,null,null,"Kit para análise de água","unidade",{"$f":"Inventário!E36","v":0},{"$f":"Inventário!D36","v":0},0,0.1,0,0,0.1,0,{"$f":"Inventário!F36","v":0},{"$error":"#DIV/0!"},0]
[null,null,null,null,null,null,null,null,null,null,null,null,null,null,null,null,null,null,"Mesa","unidade",{"$f":"Inventário!E37","v":0},{"$f":"Inventário!D37","v":0},0,0.1,0,0,0.1,0,{"$f":"Inventário!F37","v":0},{"$error":"#DIV/0!"},0]
[null,null,null,null,null,null,null,null,null,null,null,null,null,null,null,null,null,null,"Misturador de ração","unidade",{"$f":"Inventário!E38","v":0},{"$f":"Inventário!D38","v":0},0,0.1,0,0,0.1,0,{"$f":"Inventário!F38","v":0},{"$error":"#DIV/0!"},0]
[null,null,null,null,null,null,null,null,null,null,null,null,null,null,null,null,null,null,"Motobomba","unidade",{"$f":"Inventário!E39","v":0},{"$f":"Inventário!D39","v":0},0,0.1,0,0,0.1,0,{"$f":"Inventário!F39","v":0},{"$error":"#DIV/0!"},0]
[null,null,null,null,null,null,null,null,null,null,null,null,null,null,null,null,null,null,"Oxímetro","unidade",{"$f":"Inventário!E40","v":0},{"$f":"Inventário!D40","v":0},0,0.1,0,0,0.1,0,{"$f":"Inventário!F40","v":0},{"$error":"#DIV/0!"},0]
[null,null,null,null,null,null,null,null,null,null,null,null,null,null,null,null,null,null,"Puça","unidade",{"$f":"Inventário!E41","v":0},{"$f":"Inventário!D41","v":0},0,0.1,0,0,0.1,0,{"$f":"Inventário!F41","v":0},{"$error":"#DIV/0!"},0]
[null,null,null,null,null,null,null,null,null,null,null,null,null,null,null,null,null,null,"Rede ","unidade",{"$f":"Inventário!E42","v":0},{"$f":"Inventário!D42","v":0},0,0.1,0,0,0.1,0,{"$f":"Inventário!F42","v":0},{"$error":"#DIV/0!"},0]
[null,null,null,null,null,null,null,null,null,null,null,null,null,null,null,null,null,null,"Tarrafa","unidade",{"$f":"Inventário!E43","v":0},{"$f":"Inventário!D43","v":0},0,0.1,0,0,0.1,0,{"$f":"Inventário!F43","v":0},{"$error":"#DIV/0!"},0]
[null,null,null,null,null,null,null,null,null,null,null,null,null,null,null,null,null,null,"Outros equipamentos 1","unidade",{"$f":"Inventário!E44","v":0},{"$f":"Inventário!D44","v":0},0,0.1,0,0,0.1,0,{"$f":"Inventário!F44","v":0},{"$error":"#DIV/0!"},0]
[null,null,null,null,null,null,null,null,null,null,null,null,null,null,null,null,null,null,"Outros equipamentos 2","unidade",{"$f":"Inventário!E45","v":0},{"$f":"Inventário!D45","v":0},0,0.1,0,0,0.1,0,{"$f":"Inventário!F45","v":0},{"$error":"#DIV/0!"},0]
[null,null,null,null,null,null,null,null,null,null,null,null,null,null,null,null,null,null,"Outros equipamentos 3","unidade",{"$f":"Inventário!E46","v":0},{"$f":"Inventário!D46","v":0},0,0.1,0,0,0.1,0,{"$f":"Inventário!F46","v":0},{"$error":"#DIV/0!"},0]
[null,null,null,null,null,null,null,null,null,null,null,null,null,null,null,null,null,null,"Outros equipamentos 4","unidade",{"$f":"Inventário!E47","v":0},{"$f":"Inventário!D47","v":0},0,0.1,0,0,0.1,0,{"$f":"Inventário!F47","v":0},{"$error":"#DIV/0!"},0]
[null,null,null,null,null,null,null,null,null,null,null,null,null,null,null,null,null,null,"Outros equipamentos 5","unidade",{"$f":"Inventário!E48","v":0},{"$f":"Inventário!D48","v":0},0,0.1,0,0,0.1,{"$f":"AA114*W114","v":0},{"$f":"Inventário!F48","v":0},{"$error":"#DIV/0!"},0]
[null,null,null,null,null,null,null,null,null,null,null,null,null,null,null,null,null,null,null,null,null,null,{"$f":"SUM(W91:W114)","v":0},null,{"$f":"SUM(Y91:Y114)","v":0},{"$f":"SUM(Z91:Z114)","v":0},null,null,null,{"$f":"SUM(AD91:AD114)","v":{"$error":"#DIV/0!"}},{"$f":"SUM(AE91:AE114)","v":0}]
[]
[]
[null,null,null,null,null,null,null,null,null,null,null,null,null,null,null,null,null,null,null,null,null,null,null,"Conservação e Reparo (R$/ano)",null,null,"Depreciação (R$/ano)"]
[null,null,null,null,null,null,null,null,null,null,null,null,null,null,null,null,null,null,"Benfeitorias","Unidade de medida","Valor (R$)/unidade","Quantidade (m2)/ Unid","Valor Novo","Conservação e Reparos (%)","Valor Total (R$)","Valor Total (R$)","Valor Residual    (% do novo)","Valor Residual    (R$)","Vida Útil (anos)","Depreciação (R$/ano)"]
[null,null,null,null,null,null,null,null,null,null,null,null,null,null,null,null,null,null,"Casa funcionário 1","m²",{"$f":"Inventário!E50","v":0},{"$f":"Inventário!D50","v":0},{"$f":"V120*U120","v":0},0.02,{"$f":"W120*X120","v":0},{"$f":"IFERROR(Y120,0)","v":0},0.2,{"$f":"AA120*W120","v":0},{"$f":"Inventário!F50","v":0},{"$f":"(W120-AB120)/AC120","v":{"$error":"#DIV/0!"}},{"$f":"IFERROR(AD120,0)","v":0}]
[null,null,null,null,null,null,null,null,null,null,null,null,null,null,null,null,null,null,"Casa funcionário 2","m²",{"$f":"Inventário!E51","v":0},{"$f":"Inventário!D51","v":0},{"$f":"V121*U121","v":0},0.02,{"$f":"W121*X121","v":0},{"$f":"IFERROR(Y121,0)","v":0},0.2,{"$f":"AA121*W121","v":0},{"$f":"Inventário!F51","v":0},{"$error":"#DIV/0!"},0]
[null,null,null,null,null,null,null,null,null,null,null,null,null,null,null,null,null,null,"Casa sede","m²",{"$f":"Inventário!E52","v":0},{"$f":"Inventário!D52","v":0},0,0.02,0,0,0.2,0,{"$f":"Inventário!F52","v":0},{"$error":"#DIV/0!"},0]
[null,null,null,null,null,null,null,null,null,null,null,null,null,null,null,null,null,null,"Depósito de ração","m²",{"$f":"Inventário!E53","v":0},{"$f":"Inventário!D53","v":0},0,0.02,0,0,0.2,0,{"$f":"Inventário!F53","v":0},{"$error":"#DIV/0!"},0]
[null,null,null,null,null,null,null,null,null,null,null,null,null,null,null,null,null,null,"Escritório","m²",{"$f":"Inventário!E54","v":0},{"$f":"Inventário!D54","v":0},0,0.02,0,0,0.2,0,{"$f":"Inventário!F54","v":0},{"$error":"#DIV/0!"},0]
[null,null,null,null,null,null,null,null,null,null,null,null,null,null,null,null,null,null,"Galpão 1","m²",{"$f":"Inventário!E55","v":0},{"$f":"Inventário!D55","v":0},0,0.02,0,0,0.2,0,{"$f":"Inventário!F55","v":0},{"$error":"#DIV/0!"},0]
[null,null,null,null,null,null,null,null,null,null,null,null,null,null,null,null,null,null,"Galpão 2","m²",{"$f":"Inventário!E56","v":0},{"$f":"Inventário!D56","v":0},0,0.02,0,0,0.2,0,{"$f":"Inventário!F56","v":0},{"$error":"#DIV/0!"},0]
[null,null,null,null,null,null,null,null,null,null,null,null,null,null,null,null,null,null,"Laboratório ","m²",{"$f":"Inventário!E57","v":0},{"$f":"Inventário!D57","v":0},0,0.02,0,0,0.2,0,{"$f":"Inventário!F57","v":0},{"$error":"#DIV/0!"},0]
[null,null,null,null,null,null,null,null,null,null,null,null,null,null,null,null,null,null,"Viveiro 1","m²",{"$f":"Inventário!E58","v":0},{"$f":"Inventário!D58","v":0},0,0.02,0,0,0.2,0,{"$f":"Inventário!F58","v":0},{"$error":"#DIV/0!"},0]
[null,null,null,null,null,null,null,null,null,null,null,null,null,null,null,null,null,null,"Viveiro 2","m²",{"$f":"Inventário!E59","v":0},{"$f":"Inventário!D59","v":0},0,0.02,0,0,0.2,0,{"$f":"Inventário!F59","v":0},{"$error":"#DIV/0!"},0]
[null,null,null,null,null,null,null,null,null,null,null,null,null,null,null,null,null,null,"Viveiro 3","m²",{"$f":"Inventário!E60","v":0},{"$f":"Inventário!D60","v":0},0,0.02,0,0,0.2,0,{"$f":"Inventário!F60","v":0},{"$error":"#DIV/0!"},0]
[null,null,null,null,null,null,null,null,null,null,null,null,null,null,null,null,null,null,"Viveiro 4","m²",{"$f":"Inventário!E61","v":0},{"$f":"Inventário!D61","v":0},0,0.02,0,0,0.2,0,{"$f":"Inventário!F61","v":0},{"$error":"#DIV/0!"},0]
[null,null,null,null,null,null,null,null,null,null,null,null,null,null,null,null,null,null,"Viveiro 5","m²",{"$f":"Inventário!E62","v":0},{"$f":"Inventário!D62","v":0},0,0.02,0,0,0.2,0,{"$f":"Inventário!F62","v":0},{"$error":"#DIV/0!"},0]
[null,null,null,null,null,null,null,null,null,null,null,null,null,null,null,null,null,null,"Viveiro 6","m²",{"$f":"Inventário!E63","v":0},{"$f":"Inventário!D63","v":0},0,0.02,0,0,0.2,0,{"$f":"Inventário!F67","v":0},{"$error":"#DIV/0!"},0]
[null,null,null,null,null,null,null,null,null,null,null,null,null,null,null,null,null,null,"Viveiro 7","m²",{"$f":"Inventário!E64","v":0},{"$f":"Inventário!D64","v":0},0,0.02,0,0,0.2,0,{"$f":"Inventário!F68","v":0},{"$f":"SUM(AD120:AD133)","v":{"$error":"#DIV/0!"}},0]
[null,null,null,null,null,null,null,null,null,null,null,null,null,null,null,null,null,null,"Viveiro 8","m²",{"$f":"Inventário!E65","v":0},{"$f":"Inventário!D65","v":0},0,0.02,0,0,0.2,0,{"$f":"Inventário!F69","v":0},{"$error":"#DIV/0!"},0]
[null,null,null,null,null,null,null,null,null,null,null,null,null,null,null,null,null,null,"Viveiro 9","m²",{"$f":"Inventário!E66","v":0},{"$f":"Inventário!D66","v":0},0,0.02,0,0,0.2,0,{"$f":"Inventário!F70","v":0},{"$error":"#DIV/0!"},0]
[null,null,null,null,null,null,null,null,null,null,null,null,null,null,null,null,null,null,"Viveiro 10","m²",{"$f":"Inventário!E67","v":0},{"$f":"Inventário!D67","v":0},0,0.02,0,0,0.2,0,{"$f":"Inventário!F71","v":0},{"$error":"#DIV/0!"},0]
[null,null,null,null,null,null,null,null,null,null,null,null,null,null,null,null,null,null,null,null,null,null,{"$f":"SUM(W120:W137)","v":0},null,{"$f":"SUM(Y120:Y137)","v":0},{"$f":"SUM(Z120:Z137)","v":0},null,null,null,{"$f":"SUM(AD120:AD137)","v":{"$error":"#DIV/0!"}},{"$f":"SUM(AE120:AE137)","v":0}]

{"sheet":"Custos variáveis","index":12,"n_rows":50,"n_cols":7,"rows_kept":50,"cut":false,"hidden":false,"merged":[[4,1,6,1],[49,2,49,3],[1,2,1,6],[39,2,39,6],[35,2,35,6],[33,2,33,6],[29,2,29,6],[22,2,22,6],[17,2,17,6],[9,2,9,6],[3,2,3,6],[31,2,31,6]]}
[]
[null,null,"Custos Variáveis"]
[null,null,"Itens","Unidade","Quantidade/ciclo","R$/unidade","R$/ciclo"]
[null,null,"Alevinos/juvenis"]
[null,null,"Tilápia","milheiro",{"$f":"IF('Parâmetros Recria'!D7>0,SUM('Parâmetros Recria'!D7:M7),SUM('Parâmetros Monofásico'!D7:M7))/1000","v":0},null,{"$f":"F5*E5","v":0}]
[null,null,"Espécie 1","milheiro",null,null,{"$f":"F6*E6","v":0}]
[null,null,"Espécie 2","milheiro",null,null,{"$f":"F7*E7","v":0}]
[null,null,"Espécie 3","milheiro",null,null,{"$f":"F8*E8","v":0}]
[null,null,"Subtotal","milheiro",{"$f":"SUM(E5:E7)","v":0},null,{"$f":"SUM(G5:G8)","v":0}]
[null,null,"Alimentação"]
[null,null,"Ração recria","kg",{"$f":"SUM('Parâmetros Recria'!D12:M12)","v":0},null,{"$f":"F11*E11","v":0}]
[null,null,"Ração engorda","kg",{"$f":"SUM('Parâmetros Engorda'!D12:M12)","v":0},null,{"$f":"F12*E12","v":0}]
[null,null,"Ração terminação","kg",{"$f":"SUM('Parâmetros Terminação'!D11:M11)","v":0},null,{"$f":"F13*E13","v":0}]
[null,null,"Ração p/ ciclo inteiro","kg",{"$f":"IF('Dados gerais'!C9=\"monofásico\",SUM('Parâmetros Monofásico'!D12:M12),0)","v":0},null,{"$f":"F14*E14","v":0}]
[null,null,"Ração 1","kg",null,null,{"$f":"F15*E15","v":0}]
[null,null,"Ração 2","kg",null,null,0]
[null,null,"Subtotal","kg",{"$f":"SUM(E11:E16)","v":0},null,{"$f":"SUM(G11:G16)","v":0}]
[null,null,"Fertilizantes"]
[null,null,"Orgânico 1","ton",null,null,{"$f":"F19*E19","v":0}]
[null,null,"Orgânico 2","ton",null,null,{"$f":"F20*E20","v":0}]
[null,null,"Químico 1","ton",null,null,{"$f":"F21*E21","v":0}]
[null,null,"Químico 2","ton",null,null,0]
[null,null,"Corretivos"]
[null,null,"Calcário","ton",null,null,{"$f":"F24*E24","v":0}]
[null,null,"Cal virgem","ton",null,null,{"$f":"F25*E25","v":0}]
[null,null,"Cal hidratada","ton",null,null,0]
[null,null,"Cloro","ton",null,null,0]
[null,null,"Outros 1","ton",null,null,0]
[null,null,"Outros 2","ton",null,null,0]
[null,null,"Análises (reagentes)"]
[null,null,"Kit para análise","unidade",null,null,{"$f":"F31*E31","v":0}]
[null,null,"Mão de obra temporária"]
[null,null,"Salário de temporários","número homens",null,null,{"$f":"F33*E33","v":0}]
[null,null,"Assistência técnica"]
[null,null,"Visita Técnica","visita",null,null,{"$f":"F35*E35","v":0}]
[null,null,"Taxas e impostos"]
[null,null,"Ambientais (renovação)","unidade",null,null,{"$f":"F37*E37","v":0}]
[null,null,"CESSR","%",2.3E-2,null,{"$f":"IFERROR((E38*Receitas!E15),0)","v":0}]
[null,null,"Imposto 1",null,null,null,{"$f":"F39*E39","v":0}]
[null,null,"Outros custos variáveis"]
[null,null,"Energia elétrica","kwh",null,null,{"$f":"F41*E41","v":0}]
[null,null,"Combustível","litros",null,null,0]
[null,null,"Transporte","km",null,null,0]
[null,null,"Outros Gastos 1","unidade",null,null,0]
[null,null,"Outros Gastos 2","unidade",null,null,0]
[null,null,"Outros Gastos 3","unidade",null,null,0]
[null,null,"Outros Gastos 4","unidade",null,null,0]
[null,null,"Outros Gastos 5","unidade",null,null,0]
[]
[null,null,"Valor total dos custos variáveis",null,{"$f":"SUM(G9,G17,G19:G22,G24:G25,G31,G35,G37:G39,G41:G48,G33)","v":0}]

{"sheet":"Receitas","index":13,"n_rows":19,"n_cols":9,"rows_kept":19,"cut":false,"hidden":false,"merged":[[1,1,1,8],[18,1,18,3]]}
[]
[null,"Receita bruta"]
[null,"Discriminação","Quantidade/ciclo ","Preço unitário","Receita/ciclo","Área do viveiro","Área do viveiro","Receita/m²","Receita/ha"]
[null,"Produção peixes","kg","R$/kg","R$/ciclo","m²","ha","R$/m²/ciclo","R$/ha/ciclo"]
[null,"Viveiro 1",{"$f":"IF('Parâmetros Recria'!D15>'Parâmetros Engorda'!D15,'Parâmetros Recria'!D15,IF('Parâmetros Engorda'!D15>'Parâmetros Terminação'!D15,'Parâmetros Engorda'!D15,IF('Parâmetros Terminação'!D15>'Parâmetros Monofásico'!D15,'Parâmetros Terminação'!D15,'Parâmetros Monofásico'!D15)))","v":0},{"$f":"'Parâmetros econômicos-mercado'!$E$11","v":0},{"$f":"D5*C5","v":0},{"$f":"IF('Parâmetros Terminação'!AA3>'Parâmetros Monofásico'!D5,'Parâmetros Terminação'!AA3,'Parâmetros Monofásico'!D5)","v":0},{"$f":"F5/10000","v":0},{"$f":"IFERROR(E5/F5,0)","v":0},{"$f":"IFERROR(E5/G5,0)","v":0}]
[null,"Viveiro 2",{"$f":"IF('Parâmetros Recria'!E15>'Parâmetros Engorda'!E15,'Parâmetros Recria'!E15,IF('Parâmetros Engorda'!E15>'Parâmetros Terminação'!E15,'Parâmetros Engorda'!E15,IF('Parâmetros Terminação'!E15>'Parâmetros Monofásico'!E15,'Parâmetros Terminação'!E15,'Parâmetros Monofásico'!E15)))","v":0},{"$f":"'Parâmetros econômicos-mercado'!$E$11","v":0},{"$f":"D6*C6","v":0},{"$f":"IF('Parâmetros Terminação'!AB3>'Parâmetros Monofásico'!E5,'Parâmetros Terminação'!AB3,'Parâmetros Monofásico'!E5)","v":0},{"$f":"F6/10000","v":0},{"$f":"IFERROR(E6/F6,0)","v":0},{"$f":"IFERROR(E6/G6,0)","v":0}]
[null,"Viveiro 3",{"$f":"IF('Parâmetros Recria'!F15>'Parâmetros Engorda'!F15,'Parâmetros Recria'!F15,IF('Parâmetros Engorda'!F15>'Parâmetros Terminação'!F15,'Parâmetros Engorda'!F15,IF('Parâmetros Terminação'!F15>'Parâmetros Monofásico'!F15,'Parâmetros Terminação'!F15,'Parâmetros Monofásico'!F15)))","v":0},{"$f":"'Parâmetros econômicos-mercado'!$E$11","v":0},0,{"$f":"IF('Parâmetros Terminação'!AC3>'Parâmetros Monofásico'!F5,'Parâmetros Terminação'!AC3,'Parâmetros Monofásico'!F5)","v":0},0,0,0]
[null,"Viveiro 4",{"$f":"IF('Parâmetros Recria'!G15>'Parâmetros Engorda'!G15,'Parâmetros Recria'!G15,IF('Parâmetros Engorda'!G15>'Parâmetros Terminação'!G15,'Parâmetros Engorda'!G15,IF('Parâmetros Terminação'!G15>'Parâmetros Monofásico'!G15,'Parâmetros Terminação'!G15,'Parâmetros Monofásico'!G15)))","v":0},{"$f":"'Parâmetros econômicos-mercado'!$E$11","v":0},0,{"$f":"IF('Parâmetros Terminação'!AD3>'Parâmetros Monofásico'!G5,'Parâmetros Terminação'!AD3,'Parâmetros Monofásico'!G5)","v":0},0,0,0]
[null,"Viveiro 5",{"$f":"IF('Parâmetros Recria'!H15>'Parâmetros Engorda'!H15,'Parâmetros Recria'!H15,IF('Parâmetros Engorda'!H15>'Parâmetros Terminação'!H15,'Parâmetros Engorda'!H15,IF('Parâmetros Terminação'!H15>'Parâmetros Monofásico'!H15,'Parâmetros Terminação'!H15,'Parâmetros Monofásico'!H15)))","v":0},{"$f":"'Parâmetros econômicos-mercado'!$E$11","v":0},0,{"$f":"IF('Parâmetros Terminação'!AE3>'Parâmetros Monofásico'!H5,'Parâmetros Terminação'!AE3,'Parâmetros Monofásico'!H5)","v":0},0,0,0]
[null,"Viveiro 6",{"$f":"IF('Parâmetros Recria'!I15>'Parâmetros Engorda'!I15,'Parâmetros Recria'!I15,IF('Parâmetros Engorda'!I15>'Parâmetros Terminação'!I15,'Parâmetros Engorda'!I15,IF('Parâmetros Terminação'!I15>'Parâmetros Monofásico'!I15,'Parâmetros Terminação'!I15,'Parâmetros Monofásico'!I15)))","v":0},{"$f":"'Parâmetros econômicos-mercado'!$E$11","v":0},0,{"$f":"IF('Parâmetros Terminação'!AF3>'Parâmetros Monofásico'!I5,'Parâmetros Terminação'!AF3,'Parâmetros Monofásico'!I5)","v":0},0,0,0]
[null,"Viveiro 7",{"$f":"IF('Parâmetros Recria'!J15>'Parâmetros Engorda'!J15,'Parâmetros Recria'!J15,IF('Parâmetros Engorda'!J15>'Parâmetros Terminação'!J15,'Parâmetros Engorda'!J15,IF('Parâmetros Terminação'!J15>'Parâmetros Monofásico'!J15,'Parâmetros Terminação'!J15,'Parâmetros Monofásico'!J15)))","v":0},{"$f":"'Parâmetros econômicos-mercado'!$E$11","v":0},0,{"$f":"IF('Parâmetros Terminação'!AG3>'Parâmetros Monofásico'!J5,'Parâmetros Terminação'!AG3,'Parâmetros Monofásico'!J5)","v":0},0,0,0]
[null,"Viveiro 8",{"$f":"IF('Parâmetros Recria'!K15>'Parâmetros Engorda'!K15,'Parâmetros Recria'!K15,IF('Parâmetros Engorda'!K15>'Parâmetros Terminação'!K15,'Parâmetros Engorda'!K15,IF('Parâmetros Terminação'!K15>'Parâmetros Monofásico'!K15,'Parâmetros Terminação'!K15,'Parâmetros Monofásico'!K15)))","v":0},{"$f":"'Parâmetros econômicos-mercado'!$E$11","v":0},0,{"$f":"IF('Parâmetros Terminação'!AH3>'Parâmetros Monofásico'!K5,'Parâmetros Terminação'!AH3,'Parâmetros Monofásico'!K5)","v":0},0,0,0]
[null,"Viveiro 9",{"$f":"IF('Parâmetros Recria'!L15>'Parâmetros Engorda'!L15,'Parâmetros Recria'!L15,IF('Parâmetros Engorda'!L15>'Parâmetros Terminação'!L15,'Parâmetros Engorda'!L15,IF('Parâmetros Terminação'!L15>'Parâmetros Monofásico'!L15,'Parâmetros Terminação'!L15,'Parâmetros Monofásico'!L15)))","v":0},{"$f":"'Parâmetros econômicos-mercado'!$E$11","v":0},0,{"$f":"IF('Parâmetros Terminação'!AI3>'Parâmetros Monofásico'!L5,'Parâmetros Terminação'!AI3,'Parâmetros Monofásico'!L5)","v":0},0,0,0]
[null,"Viveiro 10",{"$f":"IF('Parâmetros Recria'!M15>'Parâmetros Engorda'!M15,'Parâmetros Recria'!M15,IF('Parâmetros Engorda'!M15>'Parâmetros Terminação'!M15,'Parâmetros Engorda'!M15,IF('Parâmetros Terminação'!M15>'Parâmetros Monofásico'!M15,'Parâmetros Terminação'!M15,'Parâmetros Monofásico'!M15)))","v":0},{"$f":"'Parâmetros econômicos-mercado'!$E$11","v":0},0,{"$f":"IF('Parâmetros Terminação'!AJ3>'Parâmetros Monofásico'!M5,'Parâmetros Terminação'!AJ3,'Parâmetros Monofásico'!M5)","v":0},0,0,0]
[null,"Total venda de peixes",{"$f":"SUM(C5:C14)","v":0},{"$f":"AVERAGE(D5:D14)","v":0},{"$f":"SUM(E5:E14)","v":0},{"$f":"SUM(F5:F14)","v":0},{"$f":"SUM(G5:G14)","v":0},0,0]
[null,{"$f":"'Parâmetros econômicos-mercado'!B12","v":"Outras receitas 1"},0,{"$f":"'Parâmetros econômicos-mercado'!D12","v":0},{"$f":"D16*C16","v":0}]
[null,{"$f":"'Parâmetros econômicos-mercado'!B13","v":"Outras receitas 2"},0,{"$f":"'Parâmetros econômicos-mercado'!D13","v":0},{"$f":"D17*C17","v":0}]
[null,{"$f":"'Parâmetros econômicos-mercado'!B14","v":"Outras receitas 3"},0,{"$f":"'Parâmetros econômicos-mercado'!D14","v":0},{"$f":"D18*C18","v":0}]
[null,"Total",null,null,{"$f":"SUM(E15:E18)","v":0}]

{"sheet":"Indicadores","index":14,"n_rows":22,"n_cols":12,"rows_kept":22,"cut":false,"hidden":false,"merged":[]}
[]
[null,"Custo de Produção","Unidade","Valor total"]
[null,"Custo fixo ","R$/ciclo",{"$f":"'Custos fixos'!$C$31","v":0}]
[null,"Custo variável","R$/ciclo",{"$f":"'Custos variáveis'!E50","v":0}]
[null,"Custo total","R$/ciclo",{"$f":"SUM(D3:D4)","v":0}]
[]
[null,"Indicadores econômicos","Unidade","Quantidade",null,"Indicadores técnicos","Unidade","Quantidade",null,"Indicadores sociais","Unidade","Quantidade"]
[null,"Custo de produção/kg produzido","R$/kg",{"$f":"IF(Receitas!$C$15>0,+D5/Receitas!$C$15,0)","v":0},null,"Área total de viveiros","ha",{"$f":"IF('Dados gerais'!C9=\"Monofásico\",SUM('Parâmetros Monofásico'!D19:M19),SUM('Parâmetros Terminação'!AA4:AJ4))","v":0},null,"Número de funcionários fixos no cultivo","número",{"$f":"SUM('Custos fixos'!C16,'Custos fixos'!C17)","v":0}]
[null,"Custo fixo/kg produzido","R$/kg",{"$f":"IF(Receitas!C15>0,+Indicadores!D3/Receitas!C15,0)","v":0},null,"Período de cultivo médio","dias",{"$f":"IFERROR(IF('Custos fixos'!L5>'Custos fixos'!M3,'Custos fixos'!L5,'Custos fixos'!M3),0)","v":0},null,"Custo da mão de obra/kg produzido","R$/kg",{"$f":"IF(Receitas!$C$15>0,+SUM('Custos fixos'!D14,'Custos variáveis'!G35,'Custos variáveis'!G33)/Receitas!$C$15,0)","v":0}]
[null,"Custo variável/kg produzido","R$/kg",{"$f":"IF(Receitas!C15>0,+Indicadores!D4/Receitas!C15,0)","v":0},null,"Conversão alimentar média na recria",null,{"$f":"IFERROR(AVERAGEIF('Parâmetros Recria'!D23:M23,\">0\"),0)","v":0},null,"Custo total da mão de obra","R$",{"$f":"SUM('Custos fixos'!E16,'Custos fixos'!E17,'Custos variáveis'!G33,'Custos variáveis'!G35)","v":0}]
[null,"Lucratividade","%",{"$f":"IFERROR(D16/D12,0)","v":0},null,"Conversão alimentar média na engorda",null,{"$f":"IFERROR(AVERAGEIF('Parâmetros Engorda'!D23:M23,\">0\"),0)","v":0},null,"Produtividade da mão de obra","kg",{"$f":"IFERROR(Receitas!C15/Indicadores!L8,0)","v":0}]
[null,"Receita bruta","R$/ciclo",{"$f":"Receitas!$E$19","v":0},null,"Conversão alimentar média na terminação",null,{"$f":"IFERROR(AVERAGEIF('Parâmetros Terminação'!D23:M23,\">0\"),0)","v":0}]
[null,"Receita bruta/m²","R$/m²/ciclo",{"$f":"Receitas!H15","v":0},null,"Conversão alimentar média no monofásico",null,{"$f":"IFERROR(AVERAGEIF('Parâmetros Monofásico'!D23:M23,\">0\"),0)","v":0}]
[null,"Receita bruta/ha","R$/ha/ciclo",{"$f":"IFERROR(D12/H9,0)","v":0},null,"Custo da ração/kg produzido","R$/kg",{"$f":"IF(Receitas!$C$15>0,+'Custos variáveis'!G17/Receitas!$C$15,0)","v":0}]
[null,"Margem bruta","R$/ciclo",{"$f":"+Receitas!$E$19-D4","v":0},null,"Custo total da ração","R$/kg",{"$f":"'Custos variáveis'!G17","v":0}]
[null,"Margem líquida ","R$/ciclo",{"$f":"D12-D5","v":0},null,"Produtividade de nivelamento","kg",{"$f":"IF(Receitas!$D$15>0,H22*D5/D12,0)","v":0}]
[null,"Margem líquida/m² ","R$/m²/ciclo",{"$f":"IFERROR(D16/H8,0)","v":0},null,"Quantidade de ração utilizada no ciclo","kg",{"$f":"SUM('Custos variáveis'!E17)","v":0}]
[null,"Margem líquida/ha ","R$/ha/ciclo",{"$f":"IFERROR(D16/H9,0)","v":0},null,"Produtividade média na recria/m²","kg/m²/ciclo",{"$f":"IFERROR(AVERAGEIF('Parâmetros Recria'!D21:M21,\">0\"),0)","v":0}]
[null,"Margem líquida por quilograma produzido","R$/kg",{"$f":"IFERROR(D16/Receitas!C15,0)","v":0},null,"Produtividade média na engorda/m²","kg/m²/ciclo",{"$f":"IFERROR(AVERAGEIF('Parâmetros Engorda'!D21:M21,\">0\"),0)","v":0}]
[null,"Ponto de nivelamento do preço","R$",{"$f":"+D8","v":0},null,"Produtividade média na terminação/m²","kg/m²/ciclo",{"$f":"IFERROR(AVERAGEIF('Parâmetros Terminação'!D21:M21,\">0\"),0)","v":0}]
[null,"Preço médio de venda peixe ","R$/kg",{"$f":"Receitas!D15","v":0},null,"Produtividade média no monofásico/m²","kg/m²/ciclo",{"$f":"IFERROR(AVERAGEIF('Parâmetros Monofásico'!D21:M21,\">0\"),0)","v":0}]
[null,"Rentabilidade","%",{"$f":"IFERROR(D16/Inventário!F69,0)","v":0},null,"Quantidade de kg de peixes produzidos no ciclo","kg",{"$f":"SUM(Receitas!C15)","v":0}]

{"sheet":"Gráficos de custos","index":15,"n_rows":24,"n_cols":8,"rows_kept":24,"cut":false,"hidden":false,"merged":[[11,1,11,7],[1,1,1,7]]}
[]
[null,"Custos fixos"]
[null,"Discriminação","R$","% no fixo","% no total","% cf no ct","% no custo fixo","% no custo total"]
[null,"Conservação e reparos",{"$f":"'Custos fixos'!D7","v":0},{"$f":"C4*$D$11/$C$11","v":{"$error":"#DIV/0!"}},{"$f":"C4*$E$24/$C$24","v":{"$error":"#DIV/0!"}},null,{"$f":"IFERROR(D4,0)","v":0},{"$f":"IFERROR(E4,0)","v":0}]
[null,"Custo de oportunidade",{"$f":"'Custos fixos'!D11","v":0},{"$error":"#DIV/0!"},{"$error":"#DIV/0!"},null,{"$f":"IFERROR(D5,0)","v":0},{"$f":"IFERROR(E5,0)","v":0}]
[null,"Depreciação",{"$f":"'Custos fixos'!D3","v":0},{"$error":"#DIV/0!"},{"$error":"#DIV/0!"},null,0,0]
[null,"Mão de obra fixa",{"$f":"'Custos fixos'!D14","v":0},{"$error":"#DIV/0!"},{"$error":"#DIV/0!"},null,0,0]
[null,"Outros custos fixos",{"$f":"'Custos fixos'!D25","v":0},{"$error":"#DIV/0!"},{"$error":"#DIV/0!"},null,0,0]
[null,"Remuneração do empresário",{"$f":"'Custos fixos'!D20","v":0},{"$error":"#DIV/0!"},{"$error":"#DIV/0!"},null,0,0]
[null,"Taxas e Impostos fixos",{"$f":"'Custos fixos'!D21","v":0},{"$error":"#DIV/0!"},{"$error":"#DIV/0!"},null,0,0]
[null,"Subtotal",{"$f":"SUM(C4:C10)","v":0},100,null,{"$f":"C11*D11/C24","v":{"$error":"#DIV/0!"}},{"$f":"SUM(G4:G10)","v":0},{"$f":"IFERROR(F11,0)","v":0}]
[null,"Custos variáveis"]
[null,"Discriminação","R$","% no variável","% no total","% cv no ct","% no custo variável","% no custo total"]
[null,"Alevinos",{"$f":"'Custos variáveis'!G9","v":0},{"$f":"C14*$D$23/$C$23","v":{"$error":"#DIV/0!"}},{"$f":"C14*$E$24/$C$24","v":{"$error":"#DIV/0!"}},null,{"$f":"IFERROR(D14,0)","v":0},{"$f":"IFERROR(E14,0)","v":0}]
[null,"Alimentação",{"$f":"'Custos variáveis'!G17","v":0},{"$f":"C15*$D$23/$C$23","v":{"$error":"#DIV/0!"}},{"$error":"#DIV/0!"},null,0,0]
[null,"Análises",{"$f":"'Custos variáveis'!G31","v":0},{"$error":"#DIV/0!"},{"$error":"#DIV/0!"},null,0,0]
[null,"Assistência técnica",{"$f":"'Custos variáveis'!G35","v":0},{"$error":"#DIV/0!"},{"$error":"#DIV/0!"},null,0,0]
[null,"Corretivos",{"$f":"SUM('Custos variáveis'!G24:G29)","v":0},{"$error":"#DIV/0!"},{"$error":"#DIV/0!"},null,0,0]
[null,"Fertilizantes",{"$f":"SUM('Custos variáveis'!G19:G22)","v":0},{"$f":"C19*$D$23/$C$23","v":{"$error":"#DIV/0!"}},{"$f":"C19*$E$24/$C$24","v":{"$error":"#DIV/0!"}},null,{"$f":"IFERROR(D19,0)","v":0},{"$f":"IFERROR(E19,0)","v":0}]
[null,"Mão de obra temporária",{"$f":"'Custos variáveis'!G33","v":0},{"$error":"#DIV/0!"},{"$error":"#DIV/0!"},null,0,0]
[null,"Outros custos variáveis",{"$f":"SUM('Custos variáveis'!G41:G48)","v":0},{"$error":"#DIV/0!"},{"$error":"#DIV/0!"},null,0,0]
[null,"Taxas e Impostos variáveis",{"$f":"SUM('Custos variáveis'!G37:G39)","v":0},{"$error":"#DIV/0!"},{"$error":"#DIV/0!"},null,0,0]
[null,"Subtotal",{"$f":"SUM(C14:C22)","v":0},100,null,{"$f":"C23*D23/C24","v":{"$error":"#DIV/0!"}},{"$f":"SUM(G14:G22)","v":0},{"$f":"IFERROR(F23,0)","v":0}]
[null,"Custo total",{"$f":"SUM(C11,C23)","v":0},null,100]

{"sheet":"Retorno do investimento","index":16,"n_rows":8,"n_cols":12,"rows_kept":8,"cut":false,"hidden":false,"merged":[[7,3,7,4],[1,1,1,11],[7,1,7,2]]}
[]
[null,"Retorno do investimento"]
[null,"Ciclo 0","Ciclo 1","Ciclo 2","Ciclo 3","Ciclo 4","Ciclo 5","Ciclo 6","Ciclo 7","Ciclo 8","Ciclo 9","Ciclo 10"]
[null,{"$f":"-(Inventário!F69)","v":0},{"$f":"Indicadores!$D$16","v":0},{"$f":"Indicadores!$D$16","v":0},{"$f":"Indicadores!$D$16","v":0},{"$f":"Indicadores!$D$16","v":0},{"$f":"Indicadores!$D$16","v":0},{"$f":"Indicadores!$D$16","v":0},{"$f":"Indicadores!$D$16","v":0},{"$f":"Indicadores!$D$16","v":0},{"$f":"Indicadores!$D$16","v":0},{"$f":"Indicadores!$D$16","v":0}]
[null,{"$f":"B4","v":0},{"$f":"B5+C4","v":0},{"$f":"C5+D4","v":0},0,0,0,0,0,0,0,0]
[]
[]
[null,"Período de retorno do investimento",null,{"$f":"IF($C$5>0,\"Entre o ciclo 0 e 1\",IF($D$5>0,\"Entre os ciclos 1 e 2\",IF($E$5>0,\"Entre os ciclos 2 e 3\",IF($F$5>0,\"Entre os ciclos 3 e 4\",IF($G$5>0,\"Entre os ciclos  4 e 5\",IF($H$5>0,\"Entre os ciclos 5 e 6\",IF($I$5>0,\"Entre os ciclos 6 e 7\",IF($J$5>0,\"Entre os ciclos 7 e 8\",IF($K$5>0,\"Entre os ciclos o 8 e 9\",IF($L$5>0,\"Entre os ciclos 9 e 10\",\"Maior que 10 ciclos\"))))))))))","v":"Maior que 10 ciclos"}]

{"sheet":"Relatório da produção","index":17,"n_rows":20,"n_cols":6,"rows_kept":20,"cut":false,"hidden":false,"merged":[[1,1,1,2],[2,4,2,5],[1,4,1,5],[19,0,21,2],[19,3,21,5],[3,0,3,2],[3,3,3,5],[2,1,2,2],[4,0,4,2],[4,3,4,5]]}
[{"$f":"NOW()","v":"2012-10-05T13:15:59.590"},{"$f":"NOW()","v":41187.55277303241}," Página 1",{"$f":"NOW()","v":"2012-10-05T13:15:59.590"},{"$f":"NOW()","v":41187.55277303241},"Página 2"]
["Nome da fazenda",{"$f":"'Dados gerais'!C3","v":0},null,{"$f":"A2","v":"Nome da fazenda"},{"$f":"B2","v":0}]
["Tipo de cultivo",{"$f":"'Dados gerais'!C9","v":0},null,{"$f":"A3","v":"Tipo de cultivo"},{"$f":"B3","v":0}]
["Relatório do ciclo produção",null,null,"Relatório do ciclo produção"]
["Parâmetro técnicos",null,null,"Parâmetros econômicos"]
["Discriminação","Unidade","Quantidade","Discriminação","Unidade","Quantidade"]
["Área de viveiros","ha",{"$f":"IFERROR(IF('Parâmetros Recria'!D19>0,SUM('Parâmetros Recria'!D19:M19),SUM('Parâmetros Monofásico'!D19:M19)),0)","v":0},"Custo fixo","R$/ciclo",{"$f":"Indicadores!D3","v":0}]
["Período de cultivo","meses",{"$f":"IFERROR(IF('Custos fixos'!L6>'Custos fixos'!M3,'Custos fixos'!L6,'Custos fixos'!M3),0)","v":0},"Custo variável","R$/ciclo",{"$f":"Indicadores!D4","v":0}]
["Peso médio inicial","g",{"$f":"IFERROR(IF('Parâmetros Recria'!D8>0,AVERAGEIF('Parâmetros Recria'!D8:M8,\">0\"),AVERAGEIF('Parâmetros Monofásico'!D8:M8,\">0\")),0)","v":0},"Custo total","R$/ciclo",{"$f":"Indicadores!D5","v":0}]
["Biomassa Inicial","kg",{"$f":"IF('Parâmetros Recria'!D14>'Parâmetros Monofásico'!D14,'Parâmetros Recria'!D14,'Parâmetros Monofásico'!D14)","v":0},"Custo de produção/kg produzido","R$/kg",{"$f":"Indicadores!D8","v":0}]
["Peso médio final","g",{"$f":"IFERROR(IF(#REF!>0,AVERAGEIF(#REF!,\">0\"),AVERAGEIF('Parâmetros Monofásico'!D11:M11,\">0\")),0)","v":0},"Receita bruta","R$/ciclo",{"$f":"Indicadores!D12","v":0}]
["Biomassa Finial","kg",{"$f":"IF(#REF!>'Parâmetros Monofásico'!D15,#REF!,'Parâmetros Monofásico'!D15)","v":{"$error":"#REF!"}},"Receita bruta/m²","R$/m²/ciclo",{"$f":"Indicadores!D13","v":0}]
["Ganho de biomassa","kg",{"$f":"IF('Parâmetros Recria'!D18>0,#REF!-'Parâmetros Recria'!D14,'Parâmetros Monofásico'!D18)","v":0},"Margem líquida","R$/ciclo",{"$f":"Indicadores!D16","v":0}]
["Taxa de sobrevivência média do cultivo","%",{"$f":"IFERROR(IF('Parâmetros Recria'!D16>0,'Custos fixos'!L12,AVERAGEIF('Parâmetros Monofásico'!D16:M16,\">0\")),0)","v":0},"Margem líquida/m²","R$/m²/ciclo",{"$f":"Indicadores!D17","v":0}]
["Quantidade de ração utilizada no cultivo","kg",{"$f":"'Custos variáveis'!E17","v":0},"Margem líquida/kg produzido","R$/kg",{"$f":"Indicadores!D19","v":0}]
["Quantidade de peixes produzidos no cultivo","kg",{"$f":"Receitas!C15","v":0},"Ponto de nivelamento preço","R$",{"$f":"Indicadores!D20","v":0}]
["Produtividade média do cultivo","kg/m²/ciclo",{"$f":"IFERROR(IF(B3=\"monofásico\",Indicadores!H21,AVERAGEIF(Indicadores!H18:H20,\">0\")),0)","v":0},"Ponto de nivelamento da produção","kg",{"$f":"Indicadores!H16","v":0}]
["Conversão alimentar média do cultivo",null,{"$f":"IFERROR(IF(B3=\"monofásico\",Indicadores!H13,AVERAGEIF(Indicadores!H10:H12,\">0\")),0)","v":0},"Lucratividade","%",{"$f":"Indicadores!D11","v":0}]
["Densidade média no cultivo","peixes/m²",{"$f":"IFERROR(IF('Parâmetros Recria'!D20>0,'Custos fixos'!L24,AVERAGEIF('Parâmetros Monofásico'!D20:M20,\">0\")),0)","v":0},"Rentabilidade","%",{"$f":"Indicadores!D22","v":0}]
["Elaborado por Carlos Henrique Kulik, Helton Gonçalves Nascimento e Thiago Augusto da Cruz. Universidade Federal da Paraná (UFPR), Setor de Ciências Agrárias, Departamento de Zootecnia, Disciplina de Piscicultura - Prof.Dr. Antonio Ostrensky Neto.",null,null,"Elaborado por Carlos Henrique Kulik, Helton Gonçalves Nascimento e Thiago Augusto da Cruz. Universidade Federal da Paraná (UFPR), Setor de Ciências Agrárias, Departamento de Zootecnia, Disciplina de Piscicultura - Prof.Dr. Antonio Ostrensky Neto."]